[Event "*** Titled Tuesday Blitz"]
[Site "Chess.com"]
[Date "2020.11.24"]
[Round "2"]
[White "FMAntonio"]
[Black "niki_2003"]
[Result "1/2-1/2"]
[WhiteElo "2366"]
[BlackElo "1996"]
[TimeControl "180+1"]
[EndTime "10:33:46 PST"]
[Termination "Game drawn - insufficient material"]

1. e4 {[%clk 0:02:59.2]} 1... c5 {[%clk 0:02:59.5]} 2. Nf3 {[%clk 0:02:58.6]}
2... d6 {[%clk 0:02:59.5]} 3. d4 {[%clk 0:02:58.4]} 3... cxd4 {[%clk 0:02:59.1]}
4. Nxd4 {[%clk 0:02:58.2]} 4... Nf6 {[%clk 0:02:59.1]} 5. Bd3 {[%clk 0:02:55.8]}
5... g6 {[%clk 0:02:58.1]} 6. O-O {[%clk 0:02:52.3]} 6... Bg7 {[%clk 0:02:58]}
7. f4 {[%clk 0:02:52]} 7... Qb6 {[%clk 0:02:52.9]} 8. Bb5+ {[%clk 0:02:29.2]}
8... Bd7 {[%clk 0:02:50.5]} 9. Bxd7+ {[%clk 0:02:28.2]} 9... Nbxd7 {[%clk
0:02:50.3]} 10. Kh1 {[%clk 0:02:00.2]} 10... Nxe4 {[%clk 0:02:47.1]} 11. c3
{[%clk 0:01:55.6]} 11... O-O {[%clk 0:02:43.5]} 12. Qf3 {[%clk 0:01:51.8]} 12...
Nef6 {[%clk 0:02:40.6]} 13. Nd2 {[%clk 0:01:48]} 13... Nh5 {[%clk 0:02:28.6]}
14. N2b3 {[%clk 0:01:44.4]} 14... e5 {[%clk 0:02:26.5]} 15. Ne2 {[%clk
0:01:40.5]} 15... f5 {[%clk 0:02:24.9]} 16. fxe5 {[%clk 0:01:38.1]} 16... dxe5
{[%clk 0:02:17.6]} 17. Qd5+ {[%clk 0:01:35.2]} 17... Rf7 {[%clk 0:02:17.9]} 18.
Bg5 {[%clk 0:01:26.9]} 18... Nhf6 {[%clk 0:02:08.2]} 19. Bxf6 {[%clk 0:01:25.4]}
19... Nxf6 {[%clk 0:02:04.9]} 20. Qc4 {[%clk 0:01:20.1]} 20... Ng4 {[%clk
0:02:01.2]} 21. Qc5 {[%clk 0:01:19.4]} 21... Qxc5 {[%clk 0:01:57.6]} 22. Nxc5
{[%clk 0:01:18.9]} 22... Rd8 {[%clk 0:01:54.4]} 23. h3 {[%clk 0:01:09.7]} 23...
Ne3 {[%clk 0:01:52.3]} 24. Rf3 {[%clk 0:01:09.5]} 24... Nc4 {[%clk 0:01:52]} 25.
b3 {[%clk 0:01:08.1]} 25... Nd2 {[%clk 0:01:50.6]} 26. Rf2 {[%clk 0:01:03.9]}
26... b6 {[%clk 0:01:50.1]} 27. Ne6 {[%clk 0:01:03.3]} 27... Rdd7 {[%clk
0:01:41.8]} 28. Nxg7 {[%clk 0:01:00.1]} 28... Kxg7 {[%clk 0:01:37.7]} 29. Re1
{[%clk 0:00:56.3]} 29... Ne4 {[%clk 0:01:37.4]} 30. Rf3 {[%clk 0:00:56.3]} 30...
Rd2 {[%clk 0:01:36.6]} 31. a4 {[%clk 0:00:50.4]} 31... Rc7 {[%clk 0:01:31.9]}
32. c4 {[%clk 0:00:49.6]} 32... Rcd7 {[%clk 0:01:23.7]} 33. Nc3 {[%clk
0:00:48.9]} 33... Nxc3 {[%clk 0:01:21.4]} 34. Rxc3 {[%clk 0:00:48.9]} 34... e4
{[%clk 0:01:21.9]} 35. c5 {[%clk 0:00:43.7]} 35... R7d3 {[%clk 0:01:14.9]} 36.
Rxd3 {[%clk 0:00:37.9]} 36... Rxd3 {[%clk 0:01:14]} 37. cxb6 {[%clk 0:00:31.1]}
37... axb6 {[%clk 0:01:14.1]} 38. Rb1 {[%clk 0:00:31.2]} 38... Kf6 {[%clk
0:01:13.9]} 39. b4 {[%clk 0:00:25]} 39... Ra3 {[%clk 0:01:11.4]} 40. a5 {[%clk
0:00:20.2]} 40... bxa5 {[%clk 0:01:10.5]} 41. b5 {[%clk 0:00:20.5]} 41... Rd3
{[%clk 0:01:03.7]} 42. b6 {[%clk 0:00:19.9]} 42... Rd8 {[%clk 0:01:04.2]} 43.
Kg1 {[%clk 0:00:16.9]} 43... Ke6 {[%clk 0:01:02.4]} 44. Kf2 {[%clk 0:00:16.1]}
44... Rb8 {[%clk 0:01:01.6]} 45. Ke3 {[%clk 0:00:15.3]} 45... Kd5 {[%clk
0:01:02.1]} 46. Rb5+ {[%clk 0:00:11.7]} 46... Kc6 {[%clk 0:01:01.7]} 47. Rxa5
{[%clk 0:00:11.8]} 47... Rxb6 {[%clk 0:01:01.3]} 48. g4 {[%clk 0:00:05.8]} 48...
Rb3+ {[%clk 0:00:54.7]} 49. Kf4 {[%clk 0:00:05.6]} 49... Rxh3 {[%clk 0:00:49.7]}
50. gxf5 {[%clk 0:00:05.2]} 50... Rf3+ {[%clk 0:00:49.5]} 51. Kxe4 {[%clk
0:00:04.5]} 51... Rxf5 {[%clk 0:00:48.5]} 52. Rxf5 {[%clk 0:00:04.2]} 52...
gxf5+ {[%clk 0:00:48.4]} 53. Kxf5 {[%clk 0:00:04.8]} 53... Kd6 {[%clk
0:00:48.5]} 54. Kg5 {[%clk 0:00:04.8]} 54... Ke7 {[%clk 0:00:48.3]} 55. Kh6
{[%clk 0:00:05]} 55... Kf7 {[%clk 0:00:48.9]} 56. Kxh7 {[%clk 0:00:05.2]}
1/2-1/2

[Event "*** Titled Tuesday Blitz"]
[Site "Chess.com"]
[Date "2020.11.24"]
[Round "2"]
[White "CoachHakia"]
[Black "ajdemipopushi"]
[Result "0-1"]
[WhiteElo "2156"]
[BlackElo "2426"]
[TimeControl "180+1"]
[EndTime "10:33:47 PST"]
[Termination "ajdemipopushi won by resignation"]

1. d4 {[%clk 0:03:00.9]} 1... Nf6 {[%clk 0:02:59.2]} 2. Bg5 {[%clk 0:03:00.5]}
2... c5 {[%clk 0:02:57.9]} 3. Bxf6 {[%clk 0:03:00.3]} 3... gxf6 {[%clk
0:02:57.8]} 4. d5 {[%clk 0:03:01]} 4... Qb6 {[%clk 0:02:57.7]} 5. Qc1 {[%clk
0:02:59.6]} 5... f5 {[%clk 0:02:56.7]} 6. c4 {[%clk 0:02:56.6]} 6... e5 {[%clk
0:02:48.7]} 7. dxe6 {[%clk 0:02:47.1]} 7... dxe6 {[%clk 0:02:42.1]} 8. Nc3
{[%clk 0:02:38.9]} 8... Bg7 {[%clk 0:02:41.9]} 9. e3 {[%clk 0:02:38.5]} 9... Nc6
{[%clk 0:02:37.8]} 10. Nf3 {[%clk 0:02:34.6]} 10... Qb4 {[%clk 0:02:37]} 11. Be2
{[%clk 0:02:19.4]} 11... Bd7 {[%clk 0:01:51]} 12. O-O {[%clk 0:02:17.7]} 12...
Na5 {[%clk 0:01:47.1]} 13. a3 {[%clk 0:01:54.2]} 13... Qb6 {[%clk 0:01:42.8]}
14. Qc2 {[%clk 0:01:42.5]} 14... Qb3 {[%clk 0:01:25.2]} 15. Rac1 {[%clk
0:01:24.7]} 15... Qxc2 {[%clk 0:01:24.6]} 16. Rxc2 {[%clk 0:01:24.9]} 16... Nb3
{[%clk 0:01:24.7]} 17. Rd1 {[%clk 0:01:11.1]} 17... Ke7 {[%clk 0:01:20.2]} 18.
Nd2 {[%clk 0:01:11.2]} 18... Nxd2 {[%clk 0:01:19.3]} 19. Rcxd2 {[%clk
0:01:04.9]} 19... Rad8 {[%clk 0:01:13.9]} 20. Bf3 {[%clk 0:00:58.2]} 20... Bxc3
{[%clk 0:01:13]} 21. bxc3 {[%clk 0:00:57.9]} 21... b6 {[%clk 0:01:13.2]} 22. Kf1
{[%clk 0:00:47.7]} 22... Ba4 {[%clk 0:01:09.5]} 23. Rxd8 {[%clk 0:00:46.4]}
23... Rxd8 {[%clk 0:01:08.6]} 24. Rxd8 {[%clk 0:00:45.8]} 24... Kxd8 {[%clk
0:01:08.7]} 25. Ke2 {[%clk 0:00:43.7]} 25... Bb3 {[%clk 0:01:06.7]} 26. Kd3
{[%clk 0:00:44]} 26... Ke7 {[%clk 0:01:05.7]} 27. e4 {[%clk 0:00:44]} 27...
fxe4+ {[%clk 0:01:04]} 28. Bxe4 {[%clk 0:00:44.2]} 28... f5 {[%clk 0:01:03.5]}
29. Bc6 {[%clk 0:00:41.6]} 29... Kf6 {[%clk 0:00:58.7]} 30. f4 {[%clk
0:00:39.2]} 30... h6 {[%clk 0:00:54.5]} 31. Bd7 {[%clk 0:00:35.9]} 31... e5
{[%clk 0:00:53]} 32. fxe5+ {[%clk 0:00:35.9]} 32... Kxe5 {[%clk 0:00:53]} 33. g3
{[%clk 0:00:33.3]} 33... f4 {[%clk 0:00:46.3]} 34. gxf4+ {[%clk 0:00:32.1]}
34... Kxf4 {[%clk 0:00:46.1]} 35. Bc8 {[%clk 0:00:17.7]} 35... h5 {[%clk
0:00:45.6]} 36. Ba6 {[%clk 0:00:12.5]} 36... Kf3 {[%clk 0:00:40.4]} 37. Bc8
{[%clk 0:00:10.5]} 37... Kf2 {[%clk 0:00:38.8]} 38. Be6 {[%clk 0:00:09.5]} 38...
h4 {[%clk 0:00:37.8]} 39. h3 {[%clk 0:00:09.9]} 39... Kg3 {[%clk 0:00:29.9]} 40.
Ke4 {[%clk 0:00:10]} 40... Bd1 {[%clk 0:00:27.7]} 41. Kd5 {[%clk 0:00:10.5]}
41... Bf3+ {[%clk 0:00:27.6]} 42. Kd6 {[%clk 0:00:11]} 42... Bg2 {[%clk
0:00:27.8]} 43. Kc7 {[%clk 0:00:10.3]} 43... Bxh3 {[%clk 0:00:28]} 44. Bd5
{[%clk 0:00:10.8]} 44... Bg2 {[%clk 0:00:28.3]} 45. Kb8 {[%clk 0:00:11.4]} 45...
h3 {[%clk 0:00:27.8]} 46. Kxa7 {[%clk 0:00:11.5]} 46... h2 {[%clk 0:00:28]} 47.
Kxb6 {[%clk 0:00:12.1]} 47... h1=Q {[%clk 0:00:27.7]} 48. Kxc5 {[%clk 0:00:13]}
48... Qg1+ {[%clk 0:00:25.5]} 49. Kb5 {[%clk 0:00:12.3]} 49... Qa7 {[%clk
0:00:23.9]} 0-1

[Event "*** Titled Tuesday Blitz"]
[Site "Chess.com"]
[Date "2020.11.24"]
[Round "2"]
[White "Teo2000"]
[Black "Campelov"]
[Result "1-0"]
[WhiteElo "2431"]
[BlackElo "2178"]
[TimeControl "180+1"]
[EndTime "10:33:48 PST"]
[Termination "Teo2000 won by resignation"]

1. e4 {[%clk 0:03:00.9]} 1... c5 {[%clk 0:02:59.1]} 2. b4 {[%clk 0:03:00.8]}
2... b6 {[%clk 0:02:52.4]} 3. bxc5 {[%clk 0:03:00.6]} 3... bxc5 {[%clk
0:02:52.3]} 4. g3 {[%clk 0:03:01.2]} 4... Nc6 {[%clk 0:02:51.2]} 5. Bg2 {[%clk
0:03:01.1]} 5... e6 {[%clk 0:02:51.5]} 6. Nc3 {[%clk 0:03:00.9]} 6... Bb7 {[%clk
0:02:51.5]} 7. Nge2 {[%clk 0:03:01]} 7... d6 {[%clk 0:02:51.4]} 8. Rb1 {[%clk
0:03:01.5]} 8... Qc7 {[%clk 0:02:50]} 9. O-O {[%clk 0:03:01.1]} 9... Nf6 {[%clk
0:02:46]} 10. d4 {[%clk 0:03:00.6]} 10... cxd4 {[%clk 0:02:45.3]} 11. Nxd4
{[%clk 0:03:01.5]} 11... Nxd4 {[%clk 0:02:40.3]} 12. Qxd4 {[%clk 0:03:02.4]}
12... e5 {[%clk 0:02:25.8]} 13. Qd3 {[%clk 0:02:28.5]} 13... a6 {[%clk
0:02:09.4]} 14. Ba3 {[%clk 0:02:23.2]} 14... Be7 {[%clk 0:02:06.1]} 15. Rfd1
{[%clk 0:02:22.3]} 15... O-O {[%clk 0:01:49.7]} 16. Bxd6 {[%clk 0:02:12.8]}
16... Bxd6 {[%clk 0:01:48.1]} 17. Qxd6 {[%clk 0:02:13.7]} 17... Qxc3 {[%clk
0:01:48.1]} 18. Rxb7 {[%clk 0:02:13.2]} 18... Qxc2 {[%clk 0:01:47.8]} 19. Qd2
{[%clk 0:01:54]} 19... Rac8 {[%clk 0:01:18.3]} 20. h3 {[%clk 0:01:44.9]} 20...
h6 {[%clk 0:01:15.8]} 21. Rb6 {[%clk 0:01:42.8]} 21... Qxd2 {[%clk 0:01:03.5]}
22. Rxd2 {[%clk 0:01:42.3]} 22... Ra8 {[%clk 0:00:59.5]} 23. Rdd6 {[%clk
0:01:33.1]} 23... a5 {[%clk 0:00:58.9]} 24. a4 {[%clk 0:01:32.4]} 24... Rfc8
{[%clk 0:00:55.7]} 25. Rb5 {[%clk 0:01:23.3]} 25... Rc4 {[%clk 0:00:52.4]} 26.
Rxe5 {[%clk 0:01:23.4]} 26... Rxa4 {[%clk 0:00:52.3]} 27. Re7 {[%clk 0:01:20]}
27... Ra1+ {[%clk 0:00:51.4]} 28. Kh2 {[%clk 0:01:20.1]} 28... Re8 {[%clk
0:00:48.7]} 29. Rxe8+ {[%clk 0:00:32.9]} 29... Nxe8 {[%clk 0:00:48.5]} 30. Ra6
{[%clk 0:00:33.8]} 30... a4 {[%clk 0:00:46.2]} 31. e5 {[%clk 0:00:31.1]} 31...
Kf8 {[%clk 0:00:45]} 32. Bc6 {[%clk 0:00:29.1]} 32... Ke7 {[%clk 0:00:40.6]} 33.
Rxa4 {[%clk 0:00:28.5]} 33... Rxa4 {[%clk 0:00:32.5]} 34. Bxa4 {[%clk
0:00:29.4]} 34... Nc7 {[%clk 0:00:32.8]} 35. Bb3 {[%clk 0:00:28.8]} 35... f6
{[%clk 0:00:32.2]} 36. exf6+ {[%clk 0:00:28]} 36... Kxf6 {[%clk 0:00:32.1]} 37.
Kg2 {[%clk 0:00:28.9]} 37... Nb5 {[%clk 0:00:31.6]} 38. f4 {[%clk 0:00:28]}
38... Nd4 {[%clk 0:00:30.9]} 39. Bd5 {[%clk 0:00:26.5]} 39... g5 {[%clk
0:00:31.1]} 40. fxg5+ {[%clk 0:00:24.3]} 40... hxg5 {[%clk 0:00:29]} 41. Kf2
{[%clk 0:00:24]} 41... Nf5 {[%clk 0:00:27.7]} 42. g4 {[%clk 0:00:13.2]} 42...
Nh4 {[%clk 0:00:22.8]} 43. Be4 {[%clk 0:00:10.9]} 43... Ke5 {[%clk 0:00:23.1]}
44. Ke3 {[%clk 0:00:10.5]} 44... Kf6 {[%clk 0:00:20.9]} 45. Kd4 {[%clk 0:00:11]}
45... Ng6 {[%clk 0:00:18.1]} 46. Bxg6 {[%clk 0:00:10.7]} 46... Kxg6 {[%clk
0:00:18.5]} 47. Ke5 {[%clk 0:00:11.6]} 47... Kg7 {[%clk 0:00:18.6]} 48. Kf5
{[%clk 0:00:11.9]} 48... Kh6 {[%clk 0:00:19]} 49. Kf6 {[%clk 0:00:12.8]} 49...
Kh7 {[%clk 0:00:19.1]} 50. Kxg5 {[%clk 0:00:13.7]} 1-0

[Event "*** Titled Tuesday Blitz"]
[Site "Chess.com"]
[Date "2020.11.24"]
[Round "2"]
[White "PIwan"]
[Black "Sebastian"]
[Result "0-1"]
[WhiteElo "2552"]
[BlackElo "2909"]
[TimeControl "180+1"]
[EndTime "10:33:49 PST"]
[Termination "Sebastian won by checkmate"]

1. c4 {[%clk 0:03:00.9]} 1... e5 {[%clk 0:02:56.7]} 2. Nc3 {[%clk 0:03:00.3]}
2... Nf6 {[%clk 0:02:56.3]} 3. Nf3 {[%clk 0:03:00.1]} 3... Nc6 {[%clk 0:02:56]}
4. e3 {[%clk 0:03:00.3]} 4... Bb4 {[%clk 0:02:55.3]} 5. Qc2 {[%clk 0:03:00.4]}
5... Bxc3 {[%clk 0:02:55.6]} 6. Qxc3 {[%clk 0:03:01.3]} 6... Qe7 {[%clk
0:02:55.5]} 7. d4 {[%clk 0:03:01.5]} 7... e4 {[%clk 0:02:55.5]} 8. d5 {[%clk
0:02:40.3]} 8... exf3 {[%clk 0:02:43.6]} 9. dxc6 {[%clk 0:02:40.2]} 9... fxg2
{[%clk 0:02:36.5]} 10. cxd7+ {[%clk 0:02:39.8]} 10... Bxd7 {[%clk 0:02:15.9]}
11. Bxg2 {[%clk 0:02:40.7]} 11... O-O-O {[%clk 0:01:59.4]} 12. b3 {[%clk
0:02:23]} 12... Bc6 {[%clk 0:01:48.4]} 13. Bxc6 {[%clk 0:02:15.8]} 13... bxc6
{[%clk 0:01:49.3]} 14. Bb2 {[%clk 0:01:39]} 14... Ne4 {[%clk 0:01:31.2]} 15. Qa5
{[%clk 0:01:03.5]} 15... Qh4 {[%clk 0:01:14.3]} 16. Qa6+ {[%clk 0:00:38.3]}
16... Kb8 {[%clk 0:01:10.8]} 17. Rf1 {[%clk 0:00:37.6]} 17... Rd6 {[%clk
0:00:48.8]} 18. Be5 {[%clk 0:00:29.2]} 18... Rhd8 {[%clk 0:00:14.6]} 19. Bxd6
{[%clk 0:00:26.1]} 19... Rxd6 {[%clk 0:00:15.5]} 20. Rd1 {[%clk 0:00:23.7]}
20... Qf6 {[%clk 0:00:08.5]} 21. Rxd6 {[%clk 0:00:11.2]} 21... Qxd6 {[%clk
0:00:08.6]} 22. Qa5 {[%clk 0:00:09.9]} 22... Qd3 {[%clk 0:00:07.2]} 23. Qb4+
{[%clk 0:00:08.6]} 23... Kc8 {[%clk 0:00:06.7]} 24. Qf8+ {[%clk 0:00:08.7]}
24... Kb7 {[%clk 0:00:06.8]} 25. Qb4+ {[%clk 0:00:08.9]} 25... Ka6 {[%clk
0:00:06.4]} 26. Qa4+ {[%clk 0:00:09.2]} 26... Kb6 {[%clk 0:00:04.6]} 27. Qb4+
{[%clk 0:00:10.1]} 27... Ka6 {[%clk 0:00:04.8]} 28. Qa4+ {[%clk 0:00:10.6]}
28... Kb7 {[%clk 0:00:05.4]} 29. Qb4+ {[%clk 0:00:11.3]} 29... Kc8 {[%clk
0:00:05.4]} 30. Qf8+ {[%clk 0:00:11.8]} 30... Kd7 {[%clk 0:00:04]} 31. Qxf7+
{[%clk 0:00:10.4]} 31... Kd6 {[%clk 0:00:04.5]} 32. Qf8+ {[%clk 0:00:09.9]}
32... Kd7 {[%clk 0:00:03.4]} 33. Qf7+ {[%clk 0:00:10]} 33... Kc8 {[%clk
0:00:03.3]} 34. Qf8+ {[%clk 0:00:09.6]} 34... Kb7 {[%clk 0:00:03.8]} 35. Qb4+
{[%clk 0:00:10.1]} 35... Kc8 {[%clk 0:00:04.3]} 36. Qf8+ {[%clk 0:00:10.1]}
36... Kd7 {[%clk 0:00:04.7]} 37. Qxg7+ {[%clk 0:00:10.1]} 37... Kc8 {[%clk
0:00:04.3]} 38. Qf8+ {[%clk 0:00:09.5]} 38... Kb7 {[%clk 0:00:04.8]} 39. Qb4+
{[%clk 0:00:09.5]} 39... Kc8 {[%clk 0:00:05.3]} 40. Qf8+ {[%clk 0:00:09.6]}
40... Kd7 {[%clk 0:00:05.4]} 41. Qg7+ {[%clk 0:00:09.8]} 41... Kc8 {[%clk
0:00:05.6]} 42. Qd4 {[%clk 0:00:10.4]} 42... Qc2 {[%clk 0:00:04.8]} 43. Qe5
{[%clk 0:00:05.6]} 43... Qd2# {[%clk 0:00:04]} 0-1

[Event "*** Titled Tuesday Blitz"]
[Site "Chess.com"]
[Date "2020.11.24"]
[Round "2"]
[White "Ashedu66"]
[Black "yobdc"]
[Result "0-1"]
[WhiteElo "2235"]
[BlackElo "2452"]
[TimeControl "180+1"]
[EndTime "10:33:49 PST"]
[Termination "yobdc won on time"]

1. d4 {[%clk 0:03:00.9]} 1... e6 {[%clk 0:02:57.9]} 2. e4 {[%clk 0:02:59.9]}
2... d5 {[%clk 0:02:56.9]} 3. Nc3 {[%clk 0:02:59.3]} 3... Bb4 {[%clk 0:02:56.8]}
4. exd5 {[%clk 0:02:58.5]} 4... exd5 {[%clk 0:02:56.6]} 5. Bd3 {[%clk
0:02:58.7]} 5... Nf6 {[%clk 0:02:54.6]} 6. Ne2 {[%clk 0:02:55.9]} 6... c6 {[%clk
0:02:52.8]} 7. O-O {[%clk 0:02:55.3]} 7... O-O {[%clk 0:02:52.9]} 8. h3 {[%clk
0:02:53.1]} 8... Re8 {[%clk 0:02:50.9]} 9. Ng3 {[%clk 0:02:53]} 9... g6 {[%clk
0:02:42.1]} 10. Qf3 {[%clk 0:02:50.2]} 10... Nbd7 {[%clk 0:02:37.9]} 11. Bg5
{[%clk 0:02:46]} 11... Bf8 {[%clk 0:02:37.2]} 12. Rae1 {[%clk 0:02:31]} 12...
Rxe1 {[%clk 0:02:36.3]} 13. Rxe1 {[%clk 0:02:29.1]} 13... h6 {[%clk 0:02:34.9]}
14. Bf4 {[%clk 0:02:24.6]} 14... Bg7 {[%clk 0:02:27.4]} 15. Nce2 {[%clk
0:02:00.9]} 15... Nf8 {[%clk 0:02:24.5]} 16. c3 {[%clk 0:01:55]} 16... a5 {[%clk
0:02:08.6]} 17. Be5 {[%clk 0:01:48]} 17... Ne6 {[%clk 0:01:57.7]} 18. Nf4 {[%clk
0:01:37.5]} 18... Nxf4 {[%clk 0:01:57.5]} 19. Qxf4 {[%clk 0:01:34.8]} 19... Bd7
{[%clk 0:01:43.9]} 20. h4 {[%clk 0:01:21.2]} 20... h5 {[%clk 0:01:29.1]} 21. f3
{[%clk 0:01:07.3]} 21... a4 {[%clk 0:01:16.8]} 22. a3 {[%clk 0:01:06.4]} 22...
Qe7 {[%clk 0:01:00.9]} 23. Re2 {[%clk 0:01:00.6]} 23... Be6 {[%clk 0:01:00.8]}
24. Qg5 {[%clk 0:00:37.7]} 24... Re8 {[%clk 0:00:53.8]} 25. f4 {[%clk
0:00:27.5]} 25... Ng4 {[%clk 0:00:28.4]} 26. Qxe7 {[%clk 0:00:24.6]} 26... Rxe7
{[%clk 0:00:29.3]} 27. Bxg7 {[%clk 0:00:22.9]} 27... Kxg7 {[%clk 0:00:28.8]} 28.
f5 {[%clk 0:00:21.8]} 28... gxf5 {[%clk 0:00:20.6]} 29. Nxf5+ {[%clk 0:00:11.9]}
29... Bxf5 {[%clk 0:00:20.2]} 30. Rxe7 {[%clk 0:00:12]} 30... Bxd3 {[%clk
0:00:20.4]} 31. Rxb7 {[%clk 0:00:11.9]} 31... Bb5 {[%clk 0:00:20.4]} 32. Re7
{[%clk 0:00:08.5]} 32... Kg6 {[%clk 0:00:20.2]} 33. g3 {[%clk 0:00:07.1]} 33...
f6 {[%clk 0:00:19.8]} 34. Kg2 {[%clk 0:00:07]} 34... Kf5 {[%clk 0:00:19.6]} 35.
Kf3 {[%clk 0:00:06.3]} 35... Nh2+ {[%clk 0:00:17.4]} 36. Ke3 {[%clk 0:00:04.9]}
36... Ng4+ {[%clk 0:00:17.1]} 37. Kf3 {[%clk 0:00:04.8]} 37... Bd3 {[%clk
0:00:17]} 38. Rc7 {[%clk 0:00:03.8]} 38... Bb5 {[%clk 0:00:14.2]} 39. Rh7 {[%clk
0:00:02.8]} 39... Kg6 {[%clk 0:00:14]} 40. Re7 {[%clk 0:00:02.8]} 40... Nh6
{[%clk 0:00:14.2]} 41. Kf4 {[%clk 0:00:02.1]} 41... Nf5 {[%clk 0:00:13.9]} 42.
Ra7 {[%clk 0:00:01.8]} 42... Nd6 {[%clk 0:00:13.9]} 0-1

[Event "*** Titled Tuesday Blitz"]
[Site "Chess.com"]
[Date "2020.11.24"]
[Round "2"]
[White "SHIVACalypso"]
[Black "wisdomboy"]
[Result "1-0"]
[WhiteElo "2418"]
[BlackElo "2139"]
[TimeControl "180+1"]
[EndTime "10:33:49 PST"]
[Termination "SHIVACalypso won by resignation"]

1. Nf3 {[%clk 0:03:00.9]} 1... Nf6 {[%clk 0:02:59.5]} 2. c4 {[%clk 0:03:00.2]}
2... c5 {[%clk 0:02:59.2]} 3. g3 {[%clk 0:02:59.5]} 3... Nc6 {[%clk 0:02:59.1]}
4. Bg2 {[%clk 0:02:56]} 4... g6 {[%clk 0:02:59.5]} 5. O-O {[%clk 0:02:55.6]}
5... Bg7 {[%clk 0:03:00.1]} 6. Nc3 {[%clk 0:02:55.7]} 6... O-O {[%clk
0:03:00.5]} 7. d3 {[%clk 0:02:55.8]} 7... d6 {[%clk 0:02:55]} 8. a3 {[%clk
0:02:54.6]} 8... a6 {[%clk 0:02:49.2]} 9. Rb1 {[%clk 0:02:53.5]} 9... Ng4 {[%clk
0:02:38]} 10. h3 {[%clk 0:02:51.5]} 10... Nge5 {[%clk 0:02:37.9]} 11. Nxe5
{[%clk 0:02:49.5]} 11... Bxe5 {[%clk 0:02:36]} 12. Bd2 {[%clk 0:02:49.5]} 12...
Be6 {[%clk 0:02:27.9]} 13. b4 {[%clk 0:02:45.1]} 13... Qd7 {[%clk 0:02:23.8]}
14. Kh2 {[%clk 0:02:40.8]} 14... Rab8 {[%clk 0:02:15.6]} 15. Nd5 {[%clk
0:02:23.6]} 15... b6 {[%clk 0:01:59.1]} 16. Bh6 {[%clk 0:01:58.8]} 16... Rfe8
{[%clk 0:01:50.1]} 17. b5 {[%clk 0:01:39.1]} 17... axb5 {[%clk 0:01:36.8]} 18.
cxb5 {[%clk 0:01:40]} 18... Nd4 {[%clk 0:01:36.9]} 19. Bf4 {[%clk 0:01:18.2]}
19... Bxd5 {[%clk 0:01:33.4]} 20. Bxd5 {[%clk 0:01:10.6]} 20... Bxf4 {[%clk
0:01:33.4]} 21. gxf4 {[%clk 0:01:09]} 21... Qf5 {[%clk 0:01:33.6]} 22. Bg2
{[%clk 0:01:00]} 22... Qxf4+ {[%clk 0:01:33.6]} 23. Kh1 {[%clk 0:01:00.5]} 23...
Ra8 {[%clk 0:01:26.3]} 24. e3 {[%clk 0:00:59.5]} 24... Qf5 {[%clk 0:01:16.4]}
25. exd4 {[%clk 0:00:57]} 25... Rxa3 {[%clk 0:01:16.3]} 26. dxc5 {[%clk
0:00:52.9]} 26... Rxd3 {[%clk 0:01:15.1]} 27. Qg4 {[%clk 0:00:52.8]} 27... Qxg4
{[%clk 0:01:11.1]} 28. hxg4 {[%clk 0:00:53.7]} 28... dxc5 {[%clk 0:01:11.6]} 29.
Rfd1 {[%clk 0:00:51]} 29... Red8 {[%clk 0:01:08.4]} 30. Rxd3 {[%clk 0:00:50.3]}
30... Rxd3 {[%clk 0:01:09.3]} 31. Ra1 {[%clk 0:00:42.3]} 31... Rd4 {[%clk
0:01:08.8]} 32. Bf3 {[%clk 0:00:39]} 32... Kg7 {[%clk 0:01:08.4]} 33. Ra6 {[%clk
0:00:37.8]} 33... Rf4 {[%clk 0:01:06.9]} 34. Kg2 {[%clk 0:00:37.2]} 34... e5
{[%clk 0:01:02]} 35. Rxb6 {[%clk 0:00:35.6]} 35... Rb4 {[%clk 0:01:01.6]} 36.
Rb7 {[%clk 0:00:31.2]} 36... Kf8 {[%clk 0:00:54.6]} 37. b6 {[%clk 0:00:30.6]}
37... f5 {[%clk 0:00:54.5]} 38. gxf5 {[%clk 0:00:30.2]} 38... gxf5 {[%clk
0:00:55.4]} 39. Bd5 {[%clk 0:00:30.2]} 39... c4 {[%clk 0:00:51.1]} 40. Rf7+
{[%clk 0:00:24.4]} 40... Ke8 {[%clk 0:00:50.7]} 41. b7 {[%clk 0:00:24.8]} 41...
c3 {[%clk 0:00:50.2]} 42. Rc7 {[%clk 0:00:21.5]} 42... Kd8 {[%clk 0:00:45.6]}
43. Rc8+ {[%clk 0:00:15.5]} 43... Kd7 {[%clk 0:00:44.9]} 44. b8=Q {[%clk
0:00:10.6]} 44... Rxb8 {[%clk 0:00:43.1]} 45. Rxb8 {[%clk 0:00:11.5]} 45... c2
{[%clk 0:00:43.1]} 46. Be6+ {[%clk 0:00:12]} 46... Kxe6 {[%clk 0:00:41.6]} 47.
Rc8 {[%clk 0:00:12.9]} 47... e4 {[%clk 0:00:41.8]} 48. Rxc2 {[%clk 0:00:12.8]}
48... Ke5 {[%clk 0:00:42.7]} 49. Rc7 {[%clk 0:00:12.8]} 49... h5 {[%clk
0:00:42.5]} 50. Rh7 {[%clk 0:00:12.2]} 50... Kf4 {[%clk 0:00:43.4]} 51. Rxh5
{[%clk 0:00:12.2]} 51... Kg4 {[%clk 0:00:44.3]} 52. Rh8 {[%clk 0:00:12]} 52...
f4 {[%clk 0:00:45.2]} 53. Rg8+ {[%clk 0:00:12]} 53... Kf5 {[%clk 0:00:46.1]} 54.
Kh3 {[%clk 0:00:10.7]} 54... e3 {[%clk 0:00:45.2]} 55. fxe3 {[%clk 0:00:10.6]}
55... fxe3 {[%clk 0:00:46.1]} 56. Kg2 {[%clk 0:00:11]} 56... Ke4 {[%clk
0:00:47]} 57. Kf1 {[%clk 0:00:10.9]} 57... Kd3 {[%clk 0:00:47.9]} 58. Ke1 {[%clk
0:00:11.2]} 58... Ke4 {[%clk 0:00:48]} 59. Ke2 {[%clk 0:00:11.1]} 59... Kf4
{[%clk 0:00:48.6]} 60. Re8 {[%clk 0:00:11.1]} 60... Kf5 {[%clk 0:00:49.5]} 61.
Rxe3 {[%clk 0:00:11.7]} 61... Kf6 {[%clk 0:00:50.4]} 62. Kd3 {[%clk 0:00:11.9]}
62... Kf5 {[%clk 0:00:51.3]} 63. Kd4 {[%clk 0:00:12.4]} 63... Kg4 {[%clk
0:00:52.2]} 64. Re4+ {[%clk 0:00:12.3]} 64... Kg5 {[%clk 0:00:53.1]} 65. Kd5
{[%clk 0:00:12.2]} 65... Kf6 {[%clk 0:00:54]} 66. Re5 {[%clk 0:00:12.1]} 66...
Kf7 {[%clk 0:00:53.8]} 67. Re6 {[%clk 0:00:12.1]} 67... Kg7 {[%clk 0:00:54.7]}
68. Ke5 {[%clk 0:00:12.2]} 68... Kf7 {[%clk 0:00:55.6]} 69. Kf5 {[%clk
0:00:12.1]} 69... Kg7 {[%clk 0:00:55.7]} 70. Rf6 {[%clk 0:00:12.3]} 1-0